bitfinex/quotes_SOLUSD_20220117
["timestamp","ask_amount","ask_price","bid_price","bid_amount"]
[1642417712084,10.12,143.23,143.16,1.97760694]
[1642417712481,35.94372021,143.22,143.16,1.97760694]
[1642417712683,46.06372021,143.22,143.16,1.97760694]
[1642417714582,56.54152021,143.22,143.16,1.97760694]
[1642417714782,58.28056446,143.22,143.16,1.97760694]
[1642417714984,58.28056446,143.22,143.14,1.97760694]
[1642417715187,23.6375,143.21,143.14,1.97760694]
[1642417716089,23.6375,143.21,143.13,48.66406698]
[1642417716586,10.4791,143.2,143.13,48.66406698]
[1642417717888,23.6375,143.21,143.13,48.66406698]
[1642417718694,23.6375,143.21,143.14,0.25]
[1642417719089,23.6375,143.21,143.14,1.97760694]
[1642417719490,56.54172021,143.22,143.14,1.97760694]
[1642417720094,56.54172021,143.22,143.14,26.84510694]
[1642417725101,20.598,143.22,143.14,26.84510694]
[1642417726203,10.12,143.22,143.14,26.84510694]
[1642417728903,13.99454327,143.21,143.14,26.84510694]
[1642417729713,9.42749464,143.22,143.14,26.84510694]
[1642417729908,9.42749464,143.22,143.14,37.32070694]
[1642417730510,9.42749464,143.22,143.14,26.84510694]
[1642417730809,69.74,143.21,143.14,1.97760694]
[1642417731011,20.5996,143.2,143.14,1.97760694]
[1642417731512,39.35931977,143.19,143.12,1.97760694]
[1642417731710,10.12,143.18,143.12,1.97760694]
[1642417731909,11.85904425,143.18,143.12,1.97760694]
[1642417732309,1.73904425,143.17,143.12,1.97760694]
[1642417732510,35.75817878,143.16,143.12,1.97760694]
[1642417732711,46.24067878,143.16,143.09,38.68483256]
[1642417733511,20.6025,143.16,143.09,38.68483256]
[1642417733717,10.12,143.16,143.09,38.68483256]
[1642417734112,10.12,143.16,143.1,0.25]
[1642417734314,11.85904425,143.16,143.06,1.97760694]
[1642417735114,11.85904425,143.16,143.05,1.97760694]
[1642417735415,22.34104425,143.16,143.06,35.61032792]
[1642417736320,69.74,143.15,143.06,35.61032792]
[1642417736519,10.4845,143.13,143.06,35.61032792]
[1642417736717,20.6045,143.13,143.06,35.61032792]
[1642417740454,10.12,143.13,143.06,35.61032792]
[1642417741555,24.3437,143.15,143.07,0.25]
[1642417741758,10.12,143.16,143.07,0.25]
[1642417741956,10.12,143.16,143.07,23.098]
[1642417743158,10.12,143.16,143.07,33.5786]
[1642417744762,10.12,143.16,143.07,103.3186]
[1642417745560,10.12,143.2,143.07,103.3186]
[1642417745761,10.12,143.2,143.07,112.0506]
[1642417745961,10.12,143.2,143.07,118.0506]
[1642417746160,10.12,143.2,143.07,119.36615647]
[1642417747260,10.12,143.2,143.07,129.48615647]
[1642417747461,10.12,143.2,143.07,130.14820694]
[1642417748262,10.12,143.2,143.08,1.97760694]
[1642417748460,10.12,143.2,143.11,10.4769]
[1642417748661,10.12,143.2,143.12,44.3370363]
[1642417748898,10.12,143.2,143.12,44.5870363]
[1642417749161,10.12,143.2,143.12,44.3370363]
[1642417750170,10.12,143.2,143.13,10.4765]
[1642417750763,10.12,143.2,143.14,0.25]
[1642417753567,44.2845,143.23,143.14,0.25]
[1642417753767,44.2845,143.23,143.14,22.9954]
[1642417757273,44.2845,143.23,143.14,22.7454]
[1642417758572,44.2845,143.23,143.15,0.25]
[1642417758772,44.2845,143.23,143.14,22.7454]
[1642417759777,44.2845,143.23,143.15,0.25]
[1642417760375,44.2845,143.23,143.14,22.7454]
[1642417764802,33.8074,143.23,143.14,22.7454]
[1642417766803,33.8074,143.23,143.14,92.4854]
[1642417769909,33.8074,143.23,143.14,102.9611]
[1642417770309,10.12,143.23,143.14,102.9611]
[1642417771912,1.82342318,143.25,143.15,0.25]
[1642417772116,1.82342318,143.25,143.19,69.74]
[1642417772521,1.82342318,143.26,143.19,69.74]
[1642417772720,1.82342318,143.26,143.21,69.74]
[1642417773118,1.82342318,143.26,143.22,10.7195]
[1642417773320,1.94526641,143.3,143.23,77.0]
[1642417773517,1.94526641,143.3,143.24,23.6018]
[1642417773718,1.94526641,143.3,143.24,23.8518]
[1642417774117,1.94526641,143.3,143.25,36.68609317]
[1642417774319,1.94526641,143.3,143.26,69.99]
[1642417774521,44.88258672,143.35,143.26,77.189]
[1642417774721,44.88258672,143.35,143.26,100.126]
[1642417775420,44.88258672,143.35,143.26,110.5928]
[1642417776220,44.88258672,143.35,143.26,17.9158]
[1642417776422,57.09013097,143.35,143.21,22.7951]
[1642417776719,10.12,143.34,143.22,24.0109]
[1642417776920,10.12,143.34,143.22,34.7307]
[1642417777119,11.85904425,143.34,143.22,34.7307]
[1642417777322,34.0921,143.33,143.23,43.325201]
[1642417777519,23.6222,143.33,143.23,50.119201]
[1642417777830,10.12,143.34,143.24,0.25]
[1642417778019,10.12,143.34,143.24,24.5264]
[1642417778420,9.93532189,143.34,143.24,24.5264]
[1642417779522,9.93532189,143.34,143.24,34.9943]
[1642417780623,22.14326614,143.34,143.24,34.9943]
[1642417780823,22.14326614,143.34,143.21,22.7951]
[1642417781023,23.0864,143.33,143.21,22.7951]
[1642417781224,10.12,143.32,143.21,22.7951]
[1642417781428,24.9503,143.31,143.21,22.7951]
[1642417781827,18.37586758,143.3,143.21,22.7951]
[1642417782125,20.11491183,143.3,143.21,22.7951]
[1642417782325,30.58651183,143.3,143.21,22.7951]
[1642417782957,28.84746758,143.3,143.2,24.852]
[1642417783353,40.70651183,143.3,143.2,24.852]
[1642417784955,40.70651183,143.3,143.16,34.6634]
[1642417785157,22.8359,143.29,143.17,71.53146627]
[1642417785356,10.4733,143.28,143.18,69.74]
[1642417785856,10.4733,143.28,143.19,23.2567]
[1642417787855,10.4733,143.28,143.19,23.0067]
[1642417788057,10.4733,143.28,143.17,70.77976627]
[1642417788259,24.7464,143.27,143.17,70.77976627]
[1642417788456,35.2205,143.27,143.17,70.77976627]
[1642417788857,35.2205,143.27,143.17,23.7862]
[1642417789058,42.4995,143.27,143.17,23.7862]
[1642417789357,54.35854425,143.27,143.17,23.7862]
[1642417789558,54.35854425,143.27,143.15,441.58524136]
[1642417789958,54.35854425,143.27,143.16,46.35391178]
[1642417791461,47.07954425,143.27,143.16,46.35391178]
[1642417791860,45.3405,143.27,143.17,0.25]
[1642417792060,45.3405,143.27,143.16,46.35391178]
[1642417792260,45.3405,143.27,143.17,23.6583]
[1642417795764,34.8664,143.27,143.18,0.25]
[1642417796165,10.12,143.27,143.18,0.25]
[1642417796364,10.12,143.31,143.18,0.25]
[1642417796565,34.2113,143.31,143.18,1.56555647]
[1642417796765,34.2113,143.31,143.18,7.82555647]
[1642417797165,34.2113,143.31,143.21,35.49330149]
[1642417797365,44.6826,143.31,143.22,0.25]
[1642417798866,34.2113,143.31,143.22,0.25]
[1642417800369,34.2113,143.31,143.22,10.7197]
[1642417800769,34.2113,143.31,143.23,69.74]
[1642417800973,10.12,143.31,143.23,69.74]
[1642417801174,10.12,143.31,143.24,0.25]
[1642417801371,10.12,143.31,143.24,10.7184]
[1642417801571,10.12,143.31,143.24,80.4584]
[1642417801972,23.7918,143.33,143.24,80.4584]
[1642417802776,23.7918,143.33,143.24,80.2084]
[1642417803179,23.7918,143.33,143.22,10.4695]
[1642417803480,25.53084425,143.33,143.21,59.63930149]
[1642417804177,10.4708,143.31,143.21,59.63930149]
[1642417804377,23.1199,143.32,143.21,59.63930149]
[1642417806278,23.1199,143.32,143.22,0.25]
[1642417806479,23.1199,143.32,143.23,10.4689]
[1642417807580,23.1199,143.32,143.24,0.25]
[1642417808683,23.1199,143.32,143.24,16.5963]
[1642417808879,23.1199,143.32,143.25,0.25]
[1642417809080,23.7918,143.33,143.25,0.25]
[1642417810581,23.7918,143.33,143.26,43.0131742]
[1642417816694,22.7918,143.33,143.26,43.0131742]
[1642417817894,1.18817778,143.36,143.26,53.4800742]
[1642417818093,1.18817778,143.36,143.28,69.74]
[1642417818292,1.18817778,143.36,143.29,23.7522]
[1642417818591,3.96000239,143.38,143.29,23.7522]
[1642417818891,74.97256437,143.39,143.29,23.7522]
[1642417819591,74.97256437,143.39,143.29,23.5022]
[1642417819792,74.97256437,143.39,143.26,43.0131742]
[1642417819991,74.97256437,143.39,143.27,24.7172]
[1642417820191,74.97256437,143.39,143.27,24.9672]
[1642417820691,85.43776437,143.39,143.27,24.9672]
[1642417821292,89.39776676,143.39,143.27,24.9672]
[1642417822294,85.43776437,143.39,143.27,24.9672]
[1642417823093,85.43776437,143.39,143.27,94.7072]
[1642417823693,85.43776437,143.39,143.27,24.9672]
[1642417823921,85.43776437,143.39,143.27,24.7172]
[1642417824296,155.17776437,143.39,143.27,24.7172]
[1642417824499,85.43776437,143.39,143.27,24.7172]
[1642417824699,89.39776676,143.39,143.28,0.25]
[1642417824896,159.13776676,143.39,143.28,0.25]
[1642417825798,10.4675,143.35,143.28,0.25]
[1642417828001,10.4664,143.37,143.28,0.25]
[1642417828697,10.4664,143.37,143.27,24.7172]
[1642417828899,20.5864,143.37,143.27,24.7172]
[1642417833201,10.4681,143.34,143.27,24.7172]
[1642417833404,31.88648993,143.34,143.27,24.7172]
[1642417840542,31.88648993,143.34,143.28,0.25]
[1642417840741,31.88648993,143.34,143.27,24.7172]
[1642417841243,10.4681,143.34,143.28,0.25]
[1642417841444,34.3648,143.36,143.28,0.25]
[1642417843747,23.8978,143.36,143.28,0.25]
[1642417844046,3.96000239,143.37,143.28,0.25]
[1642417844445,3.96000239,143.38,143.28,0.25]
[1642417844645,37.02091069,143.37,143.28,0.25]
[1642417849154,37.02091069,143.37,143.27,24.7172]
[1642417849452,47.14091069,143.37,143.27,24.7172]
[1642417849652,24.1109,143.36,143.27,24.7172]
[1642417850256,24.1109,143.36,143.24,68.9243445]
[1642417850454,24.1109,143.36,143.25,23.1472]
[1642417850659,34.2309,143.36,143.25,23.1472]
[1642417851556,10.4681,143.34,143.25,23.1472]
[1642417852657,10.4681,143.34,143.25,0.25]
[1642417853657,33.2313,143.34,143.25,23.1714]
[1642417857265,33.2313,143.34,143.25,22.9214]
[1642417858198,3.96000239,143.35,143.25,22.9214]
[1642417858395,14.08000239,143.35,143.25,22.9214]
[1642417858594,14.08000239,143.35,143.26,0.25]
[1642417859193,10.12,143.35,143.26,0.25]
[1642417859594,10.12,143.35,143.25,22.9214]
[1642417859795,20.5877,143.35,143.25,22.9214]
[1642417860797,20.5877,143.35,143.26,0.25]
[1642417866001,20.5877,143.35,143.2,69.74]
[1642417866203,10.4705,143.31,143.21,23.007]
[1642417866406,23.2126,143.3,143.21,23.007]
[1642417866803,26.23754361,143.29,143.21,58.7651898]
[1642417868903,26.23754361,143.29,143.22,0.25]
[1642417870205,23.2126,143.3,143.22,0.25]
[1642417873205,24.9836,143.34,143.22,0.25]
[1642417873405,24.3365,143.33,143.22,0.25]
[1642417874204,70.95748565,143.33,143.22,10.7174]
[1642417874605,70.95748565,143.33,143.23,23.1595]
[1642417874806,70.95748565,143.33,143.24,0.25]
[1642417877111,81.42648565,143.33,143.24,0.25]
[1642417878108,81.42648565,143.33,143.23,23.1595]
[1642417880313,81.42648565,143.33,143.24,0.25]
[1642417880712,81.42648565,143.33,143.23,23.1595]
[1642417881914,89.03648565,143.33,143.23,23.1595]
[1642417882516,89.03648565,143.33,143.24,0.25]
[1642417883115,81.42648565,143.33,143.24,0.25]
[1642417884616,81.42648565,143.33,143.23,23.1595]
[1642417885015,89.29848565,143.33,143.18,24.6885]
[1642417885217,10.12,143.32,143.19,22.7059]
[1642417885416,10.4733,143.29,143.17,28.35700165]
[1642417885617,34.5647,143.28,143.17,3.89760165]
[1642417886018,16.63746865,143.27,143.17,3.89760165]
[1642417886218,16.63746865,143.27,143.16,62.96542845]
[1642417887019,24.7243,143.26,143.16,62.96542845]
[1642417887518,10.4748,143.25,143.16,62.96542845]
[1642417887721,16.9108,143.25,143.16,62.96542845]
[1642417889422,10.4748,143.25,143.16,62.96542845]
[1642417895532,25.99653051,143.26,143.16,62.96542845]
[1642417896833,25.99653051,143.26,143.16,132.70542845]
[1642417898437,36.47073051,143.26,143.16,132.70542845]
[1642417906067,1.93929526,143.27,143.17,0.25]
[1642417906466,1.93929526,143.27,143.17,1.55580143]
[1642417906768,1.93929526,143.27,143.17,11.93580143]
[1642417906971,1.93929526,143.27,143.18,22.7582]
[1642417907370,1.93929526,143.27,143.19,0.25]
[1642417907568,23.428,143.29,143.19,0.25]
[1642417908870,33.9,143.29,143.18,22.7582]
[1642417910069,3.1189808,143.28,143.18,22.7582]
[1642417910270,13.5918808,143.28,143.18,22.7582]
[1642417911673,3.1189808,143.28,143.18,22.7582]
[1642417911872,3.1189808,143.28,143.19,69.99]
[1642417912072,3.1189808,143.28,143.19,76.667]
[1642417912273,3.1189808,143.28,143.19,76.927]
[1642417912674,1.93929526,143.28,143.19,76.927]
[1642417913373,1.93929526,143.3,143.19,87.3967]
[1642417913774,1.93929526,143.3,143.2,24.1951]
[1642417913974,1.93929526,143.3,143.21,35.01323457]
[1642417914177,1.93929526,143.3,143.22,24.7712]
[1642417916077,1.93929526,143.3,143.23,0.25]
[1642417916276,1.93929526,143.3,143.22,24.7712]
[1642417916976,34.68819526,143.31,143.22,24.7712]
[1642417917875,34.68819526,143.31,143.22,25.0312]
[1642417918675,34.68819526,143.31,143.23,0.25]
[1642417919076,1.93929526,143.3,143.23,0.25]
[1642417919677,1.93929526,143.3,143.23,10.7169]
[1642417919878,1.93929526,143.3,143.23,10.9769]
[1642417920478,1.93929526,143.32,143.23,10.9769]
[1642417920680,1.93929526,143.32,143.24,23.0593]
[1642417920881,1.93929526,143.32,143.25,0.25]
[1642417921479,1.93929526,143.34,143.25,78.172]
[1642417921681,1.93929526,143.34,143.26,24.6838]
[1642417921882,1.93929526,143.34,143.27,0.25]
[1642417922280,1.93929526,143.34,143.27,69.99]
[1642417922479,1.93929526,143.34,143.28,35.35123286]
[1642417922680,1.93929526,143.34,143.28,105.09123286]
[1642417922884,1.93929526,143.35,143.29,0.25]
[1642417923180,1.93929526,143.35,143.26,24.6838]
[1642417923780,1.93929526,143.35,143.27,0.25]
[1642417923983,1.93929526,143.35,143.27,45.09493728]
[1642417924383,25.48059526,143.37,143.27,44.84493728]
[1642417924585,25.48059526,143.37,143.28,22.7685]
[1642417924785,25.48059526,143.37,143.28,92.5085]
[1642417925387,10.4669,143.36,143.28,92.5085]
[1642417925583,25.48059526,143.37,143.28,92.5085]
[1642417925785,1.93929526,143.36,143.28,92.5085]
[1642417928985,1.93929526,143.36,143.29,0.25]
[1642417929387,1.93929526,143.37,143.29,0.25]
[1642417930592,1.93929526,143.38,143.29,0.25]
[1642417930789,1.93929526,143.38,143.28,22.7685]
[1642417932291,1.93929526,143.38,143.29,0.25]
[1642417932593,12.40479526,143.38,143.29,0.25]
[1642417932790,1.93929526,143.37,143.28,22.7685]
[1642417932991,25.22509526,143.37,143.28,22.7685]
[1642417933602,25.22509526,143.37,143.29,0.25]
[1642417934192,1.93929526,143.37,143.29,0.25]
[1642417934392,1.93929526,143.38,143.29,0.25]
[1642417935295,26.06519526,143.39,143.29,0.25]
[1642417936694,1.93929526,143.39,143.29,0.25]
[1642417938796,26.36129526,143.39,143.29,0.25]
[1642417939397,36.82589526,143.39,143.29,0.25]
[1642417939896,1.93929526,143.38,143.29,0.25]
[1642417940829,12.40489526,143.38,143.28,92.5085]
[1642417941323,24.3516,143.37,143.29,0.25]
[1642417941924,26.29089526,143.37,143.29,0.25]
[1642417943024,24.3516,143.37,143.29,0.25]
[1642417946926,26.29089526,143.37,143.29,0.25]
[1642417949735,1.93929526,143.36,143.29,0.25]
[1642417951342,1.93929526,143.35,143.29,0.25]
[1642417956240,1.93929526,143.36,143.29,0.25]
[1642417959651,1.93929526,143.36,143.28,136.90993386]
[1642417960754,1.93929526,143.36,143.29,0.25]
[1642417961155,1.93929526,143.36,143.28,136.90993386]
[1642417961355,1.93929526,143.36,143.29,0.25]
[1642417962355,1.93929526,143.35,143.29,0.25]
[1642417967682,1.93929526,143.36,143.29,0.25]
[1642417970486,1.93929526,143.36,143.29,5.888]
[1642417970683,1.93929526,143.36,143.29,16.008]
[1642417970884,1.93929526,143.36,143.29,16.268]
[1642417971285,1.93929526,143.37,143.29,16.268]
[1642417971486,1.93929526,143.37,143.3,23.6562]
[1642417971884,1.93929526,143.37,143.31,0.25]
[1642417972585,1.93929526,143.37,143.31,69.99]
[1642417972785,1.93929526,143.37,143.31,70.25]
[1642417972986,1.93929526,143.38,143.31,70.25]
[1642417973286,1.93929526,143.38,143.33,40.40509918]
[1642417973687,1.93929526,143.38,143.33,40.66509918]
[1642417974089,1.93929526,143.39,143.34,69.74]
[1642417974991,1.93929526,143.39,143.34,94.0669]
[1642417978093,3.10244915,143.4,143.34,94.0669]
[1642417978690,1.93929526,143.4,143.34,94.0669]
[1642417979291,1.93929526,143.4,143.35,0.25]
[1642417979493,3.96000239,143.43,143.35,0.25]
[1642417980094,3.96000239,143.43,143.36,10.12]
[1642417980297,3.96000239,143.44,143.37,0.25]
[1642417980500,3.96000239,143.44,143.37,79.19802649]
[1642417980896,3.96000239,143.44,143.37,79.45802649]
[1642417981898,23.4872,143.45,143.37,79.45802649]
[1642417982198,3.96000239,143.49,143.37,79.45802649]
[1642417982401,24.276,143.48,143.37,79.45802649]
[1642417988206,36.20144252,143.51,143.37,89.91372649]
[1642417988405,36.20144252,143.51,143.38,10.12]
[1642417988406,24.8496,143.5,143.38,10.12]
[1642417988807,24.8496,143.5,143.39,0.25]
[1642417989006,24.8496,143.5,143.39,24.4126]
[1642417989208,24.8496,143.5,143.4,35.05299787]
[1642417989407,24.8496,143.5,143.41,22.9745]
[1642417989607,24.8496,143.5,143.41,23.2245]
[1642417989807,24.8496,143.5,143.41,23.4845]
[1642417990408,24.8496,143.5,143.42,69.74]
[1642417990807,24.8496,143.5,143.43,39.93488956]
[1642418000847,22.75298398,143.49,143.41,22.9745]
[1642418001147,22.75298398,143.49,143.38,10.12]
[1642418001347,22.8184,143.48,143.38,10.12]
[1642418001549,22.8184,143.48,143.37,22.8388]
[1642418001951,22.8184,143.48,143.38,42.14416188]
[1642418002148,22.8184,143.48,143.38,111.88416188]
[1642418002348,22.8184,143.48,143.38,42.14416188]
[1642418002751,10.4589,143.47,143.38,42.14416188]
[1642418002947,10.4589,143.47,143.39,0.25]
[1642418003149,10.4589,143.47,143.38,42.14416188]
[1642418003347,22.8184,143.48,143.39,69.99]
[1642418003548,22.8184,143.48,143.41,69.74]
[1642418003749,22.8184,143.48,143.42,45.63046699]
[1642418004149,22.8184,143.48,143.42,115.37046699]
[1642418012456,22.8184,143.48,143.42,45.63046699]
[1642418015264,59.87199138,143.48,143.42,45.63046699]
[1642418015462,59.87199138,143.48,143.39,69.74]
[1642418016363,59.87199138,143.48,143.4,41.56085723]
[1642418023573,22.8184,143.48,143.4,41.56085723]
[1642418023772,22.8184,143.48,143.41,0.25]
[1642418026510,22.8184,143.48,143.4,41.56085723]
[1642418028206,33.2765,143.48,143.4,41.56085723]
[1642418035319,37.23650239,143.48,143.4,41.56085723]
[1642418047563,37.23650239,143.48,143.41,22.7402]
[1642418048561,37.23650239,143.48,143.4,41.56085723]
[1642418053566,17.3795345,143.47,143.4,41.56085723]
[1642418055469,37.23650239,143.48,143.4,41.56085723]
[1642418056066,7.94100209,143.47,143.4,41.56085723]
[1642418056468,50.96155459,143.47,143.4,41.56085723]
[1642418056972,50.96155459,143.47,143.39,22.6096]
[1642418057170,61.42045459,143.47,143.39,22.6096]
[1642418057774,57.43945489,143.47,143.39,22.6096]
[1642418058673,7.94098579,143.46,143.38,38.04450741]
[1642418058874,32.37148579,143.46,143.38,38.04450741]
[1642418059577,28.39050239,143.46,143.38,38.04450741]
[1642418059980,38.85010239,143.46,143.38,38.04450741]
[1642418060376,38.85010239,143.46,143.35,69.74]
[1642418060579,38.85010239,143.46,143.36,23.1892]
[1642418061479,38.85010239,143.46,143.37,38.61851747]
[1642418064083,69.74,143.45,143.36,23.1892]
[1642418064279,69.74,143.45,143.32,23.8648]
[1642418064280,10.4627,143.43,143.32,23.8648]
[1642418064482,23.1432,143.42,143.33,23.5618]
[1642418065079,23.1432,143.42,143.34,34.80492277]
[1642418065481,10.4632,143.41,143.34,34.80492277]
[1642418069482,36.56271673,143.4,143.33,23.5618]
[1642418069686,54.89432474,143.4,143.33,23.5618]
[1642418069882,54.89432474,143.4,143.29,0.99506597]
[1642418070083,32.796,143.39,143.29,25.68976597]
[1642418070305,32.796,143.39,143.29,0.99506597]
[1642418070581,1.73904425,143.38,143.29,44.87540946]
[1642418070783,38.75503283,143.37,143.29,44.87540946]
[1642418070987,10.12,143.37,143.29,44.87540946]
[1642418071184,10.12,143.37,143.29,0.99506597]
[1642418071382,12.20634425,143.36,143.29,0.99506597]
[1642418071582,10.12,143.35,143.29,0.99506597]
[1642418071783,11.85904425,143.35,143.29,0.99506597]
[1642418072385,35.06982173,143.34,143.29,0.99506597]
[1642418072585,10.12,143.33,143.29,0.99506597]
[1642418072785,10.4712,143.32,143.29,0.99506597]
[1642418072984,16.18439994,143.31,143.29,0.99506597]
[1642418074485,10.4712,143.3,143.29,0.99506597]
[1642418076189,10.4712,143.3,143.29,48.46997677]
[1642418076385,16.18439994,143.31,143.29,48.46997677]
[1642418076585,6.06439994,143.31,143.29,48.46997677]
[1642418077185,3.03219997,143.31,143.29,48.46997677]
[1642418077385,10.12,143.33,143.29,48.46997677]
[1642418079086,10.12,143.33,143.29,0.99506597]
[1642418080890,20.589,143.33,143.29,0.99506597]
[1642418082590,22.32804425,143.33,143.29,0.99506597]
[1642418083593,40.33377087,143.33,143.29,0.99506597]
[1642418085199,22.32804425,143.33,143.29,0.99506597]
[1642418087825,92.06804425,143.33,143.29,0.99506597]
[1642418088026,20.589,143.33,143.29,0.99506597]
[1642418093333,10.12,143.33,143.29,0.99506597]
[1642418095437,20.589,143.33,143.29,0.99506597]
[1642418096637,1.73904425,143.32,143.29,0.99506597]
[1642418096836,20.5928,143.31,143.22,49.0099]
[1642418097237,1.73904425,143.3,143.22,49.0099]
[1642418097538,26.68071016,143.29,143.22,49.0099]
[1642418097937,10.4731,143.28,143.15,79.8973]
[1642418098136,10.12,143.27,143.16,24.755]
[1642418098340,11.85904425,143.27,143.16,24.755]
[1642418098941,48.6370394,143.26,143.16,24.755]
[1642418099142,58.7570394,143.26,143.16,24.755]
[1642418099543,10.4755,143.24,143.16,24.755]
[1642418099740,16.56071016,143.23,143.16,24.755]
[1642418102841,10.4755,143.24,143.16,24.755]
[1642418109688,10.4755,143.24,143.2,41.13652489]
[1642418109887,10.4755,143.24,143.2,82.27304978]
[1642418111788,1.10214122,143.25,143.2,82.27304978]
[1642418114694,1.10214122,143.25,143.2,41.13652489]
[1642418115098,1.10214122,143.25,143.22,84.01059634]
[1642418115295,6.06439994,143.24,143.22,84.01059634]
[1642418118096,10.4713,143.3,143.22,84.01059634]
[1642418118295,11.97527263,143.32,143.22,84.01059634]
[1642418118498,11.97527263,143.32,143.23,23.1085]
[1642418119095,22.44527263,143.32,143.23,23.1085]
[1642418119295,20.59,143.32,143.23,23.1085]
[1642418120195,22.32904425,143.32,143.23,23.1085]
[1642418120396,22.32904425,143.32,143.28,41.13652489]
[1642418120597,22.32904425,143.32,143.28,82.27304978]
[1642418125202,20.59,143.32,143.28,82.27304978]
[1642418125400,20.59,143.32,143.29,44.88638332]
[1642418125599,20.59,143.32,143.3,41.13652489]
[1642418125801,20.59,143.32,143.31,41.13652489]
[1642418127502,10.12,143.32,143.31,47.20082489]
[1642418127700,1.85527263,143.35,143.31,47.20082489]
[1642418128503,1.85527263,143.36,143.32,40.16684702]
[1642418128701,1.85527263,143.36,143.32,49.02184702]
[1642418129906,1.85527263,143.39,143.32,49.02184702]
[1642418130311,1.85527263,143.39,143.32,40.16684702]
[1642418130512,12.32007263,143.39,143.32,40.16684702]
[1642418130910,12.32007263,143.39,143.36,41.13652489]
[1642418131109,14.05911688,143.39,143.38,41.13652489]
[1642418132534,14.05911688,143.39,143.36,41.13652489]
[1642418135036,12.20384425,143.39,143.36,41.13652489]
[1642418135935,12.20384425,143.39,143.33,41.00338688]
[1642418136135,14.05911688,143.39,143.36,41.13652489]
[1642418136938,12.20384425,143.39,143.36,41.13652489]
[1642418137841,10.4648,143.39,143.36,41.13652489]
[1642418138044,10.4648,143.39,143.37,6.0643]
[1642418138640,1.40270801,143.4,143.37,6.0643]
[1642418140043,3.14175226,143.4,143.37,6.0643]
[1642418141443,23.72575226,143.4,143.38,41.13652489]
[1642418146149,25.58102489,143.4,143.38,41.13652489]
[1642418146852,25.58102489,143.4,143.33,41.00338688]
[1642418147050,25.58102489,143.4,143.39,41.13652489]
[1642418151786,25.58102489,143.4,143.3,22.7689]
[1642418152788,1.85527263,143.38,143.31,40.79990308]
[1642418152987,20.5869,143.37,143.31,40.79990308]
[1642418153191,22.32594425,143.37,143.31,40.79990308]
[1642418155095,24.18121688,143.37,143.31,40.79990308]
[1642418156995,22.44217263,143.37,143.31,40.79990308]
[1642418157394,12.32217263,143.37,143.31,40.79990308]
[1642418165000,12.32217263,143.37,143.3,22.7689]
[1642418166203,12.32217263,143.37,143.3,69.39185144]
[1642418169109,12.32217263,143.37,143.3,69.39185144]
[1642418169708,1.85527263,143.36,143.3,69.39185144]
[1642418170608,1.85527263,143.37,143.3,69.39185144]
[1642418172411,1.85527263,143.36,143.3,69.39185144]
[1642418173612,1.85527263,143.36,143.3,22.7689]
[1642418174114,1.85527263,143.35,143.3,22.7689]
[1642418174614,1.85527263,143.35,143.3,63.81484646]
[1642418176415,1.85527263,143.35,143.3,22.7689]
[1642418177644,18.66462187,143.35,143.3,22.7689]
[1642418178547,1.85527263,143.35,143.3,22.7689]
[1642418180843,1.85527263,143.35,143.3,30.4749]
[1642418181044,1.85527263,143.35,143.3,30.7349]
[1642418181243,1.85527263,143.35,143.3,40.8549]
[1642418182245,1.85527263,143.35,143.3,33.1489]
[1642418182447,1.85527263,143.37,143.3,33.1489]
[1642418182643,1.85527263,143.37,143.31,69.74]
[1642418182843,1.85527263,143.37,143.31,70.0]
[1642418183550,1.85527263,143.37,143.31,69.74]
[1642418183751,1.85527263,143.38,143.31,69.74]
[1642418185652,1.85527263,143.38,143.31,75.869]
[1642418186847,62.37621691,143.42,143.31,69.74]
[1642418186848,1.85527263,143.39,143.31,69.74]
[1642418187248,1.85527263,143.39,143.33,36.79215203]
[1642418188049,1.85527263,143.39,143.33,106.53215203]
[1642418189952,1.85527263,143.4,143.33,106.53215203]